[Event "*** Titled Tuesday Blitz"]
[Site "Chess.com"]
[Date "2021.02.02"]
[Round "1"]
[White "LyonBeast"]
[Black "Gerodot71"]
[Result "1-0"]
[WhiteElo "3098"]
[BlackElo "2477"]
[TimeControl "180+1"]
[EndTime "10:06:29 PST"]
[Termination "LyonBeast won by checkmate"]

1. g4 {[%clk 0:03:00.9]} 1... d5 {[%clk 0:02:57.6]} 2. Bg2 {[%clk 0:02:58.2]}
2... c6 {[%clk 0:02:57.1]} 3. g5 {[%clk 0:02:57.9]} 3... e5 {[%clk 0:02:55.4]}
4. d3 {[%clk 0:02:56.2]} 4... Bd6 {[%clk 0:02:54.6]} 5. Nc3 {[%clk 0:02:53.9]}
5... Ne7 {[%clk 0:02:54.3]} 6. e4 {[%clk 0:02:53.7]} 6... Be6 {[%clk 0:02:53.1]}
7. h4 {[%clk 0:02:52.9]} 7... Nd7 {[%clk 0:02:49.5]} 8. Bd2 {[%clk 0:02:52.5]}
8... Nc5 {[%clk 0:02:47.1]} 9. Nge2 {[%clk 0:02:46.4]} 9... Qc7 {[%clk
0:02:43.3]} 10. Ng3 {[%clk 0:02:45.3]} 10... O-O-O {[%clk 0:02:39.9]} 11. b4
{[%clk 0:02:44.1]} 11... Nd7 {[%clk 0:02:15.9]} 12. Rb1 {[%clk 0:02:36.3]} 12...
Nb6 {[%clk 0:02:10.7]} 13. a4 {[%clk 0:02:29.9]} 13... d4 {[%clk 0:02:05.5]} 14.
Nce2 {[%clk 0:02:29.5]} 14... Nxa4 {[%clk 0:02:01.9]} 15. Qc1 {[%clk 0:02:29.4]}
15... Kb8 {[%clk 0:01:52.5]} 16. O-O {[%clk 0:02:19.5]} 16... Nb6 {[%clk
0:01:37.7]} 17. Nh5 {[%clk 0:02:13.7]} 17... Rhg8 {[%clk 0:01:37]} 18. f4 {[%clk
0:02:13.5]} 18... Bg4 {[%clk 0:01:33.4]} 19. Neg3 {[%clk 0:02:13.6]} 19... Nd7
{[%clk 0:01:07.1]} 20. f5 {[%clk 0:02:09.2]} 20... f6 {[%clk 0:01:06.3]} 21. Bf3
{[%clk 0:02:03.9]} 21... Bxf3 {[%clk 0:01:04.9]} 22. Rxf3 {[%clk 0:02:04.8]}
22... c5 {[%clk 0:00:51.2]} 23. bxc5 {[%clk 0:01:59.2]} 23... Bxc5 {[%clk
0:00:52.1]} 24. Qb2 {[%clk 0:01:55.4]} 24... Bb6 {[%clk 0:00:49.8]} 25. Kg2
{[%clk 0:01:50.9]} 25... Rc8 {[%clk 0:00:49.4]} 26. Bb4 {[%clk 0:01:44.1]} 26...
Qxc2+ {[%clk 0:00:44]} 27. Rf2 {[%clk 0:01:44.2]} 27... Qxb2 {[%clk 0:00:43.1]}
28. Rfxb2 {[%clk 0:01:45.1]} 28... Nc6 {[%clk 0:00:43.6]} 29. Bd6+ {[%clk
0:01:45]} 29... Ka8 {[%clk 0:00:44.1]} 30. Kf3 {[%clk 0:01:41.2]} 30... Rcd8
{[%clk 0:00:34.9]} 31. Nf1 {[%clk 0:01:36.1]} 31... g6 {[%clk 0:00:26.9]} 32.
Rxb6 {[%clk 0:01:23.2]} 32... axb6 {[%clk 0:00:24.9]} 33. Ra1+ {[%clk 0:01:13]}
33... Na5 {[%clk 0:00:24.6]} 34. Nhg3 {[%clk 0:01:09.6]} 34... gxf5 {[%clk
0:00:23.7]} 35. Nxf5 {[%clk 0:01:09]} 35... fxg5 {[%clk 0:00:23.9]} 36. Nd2
{[%clk 0:01:09.2]} 36... gxh4 {[%clk 0:00:22.9]} 37. Nc4 {[%clk 0:01:08.8]}
37... Ka7 {[%clk 0:00:11.2]} 38. Bc7 {[%clk 0:01:09]} 38... Ka6 {[%clk
0:00:08.8]} 39. Nxa5 {[%clk 0:01:09.1]} 39... bxa5 {[%clk 0:00:08.5]} 40. Rxa5#
{[%clk 0:01:08.7]} 1-0

[Event "*** Titled Tuesday Blitz"]
[Site "Chess.com"]
[Date "2021.02.02"]
[Round "1"]
[White "TimKett"]
[Black "Zq1"]
[Result "0-1"]
[WhiteElo "2175"]
[BlackElo "2520"]
[TimeControl "180+1"]
[EndTime "10:06:29 PST"]
[Termination "Zq1 won on time"]

1. e4 {[%clk 0:02:59.9]} 1... c5 {[%clk 0:02:58.6]} 2. Nf3 {[%clk 0:02:58.8]}
2... d6 {[%clk 0:02:58.6]} 3. d4 {[%clk 0:02:58.7]} 3... cxd4 {[%clk 0:02:58.7]}
4. Nxd4 {[%clk 0:02:59.2]} 4... Nf6 {[%clk 0:02:58.7]} 5. Nc3 {[%clk 0:02:59.7]}
5... Nc6 {[%clk 0:02:58.8]} 6. Bc4 {[%clk 0:02:57]} 6... Bd7 {[%clk 0:02:57.2]}
7. Be3 {[%clk 0:02:53.1]} 7... Ng4 {[%clk 0:02:52.7]} 8. Qd2 {[%clk 0:02:30.2]}
8... Nxe3 {[%clk 0:02:51.9]} 9. Qxe3 {[%clk 0:02:30.3]} 9... g6 {[%clk
0:02:47.5]} 10. h4 {[%clk 0:02:27]} 10... Bg7 {[%clk 0:02:46.1]} 11. Nxc6 {[%clk
0:02:26.5]} 11... bxc6 {[%clk 0:02:45.5]} 12. h5 {[%clk 0:02:25.3]} 12... Qb6
{[%clk 0:02:41.8]} 13. hxg6 {[%clk 0:02:23.2]} 13... Qxe3+ {[%clk 0:02:39.5]}
14. fxe3 {[%clk 0:02:19.4]} 14... hxg6 {[%clk 0:02:38.1]} 15. Rxh8+ {[%clk
0:02:16.7]} 15... Bxh8 {[%clk 0:02:37.4]} 16. Kd2 {[%clk 0:02:17.1]} 16... Be5
{[%clk 0:02:32.8]} 17. Rf1 {[%clk 0:02:10.9]} 17... e6 {[%clk 0:02:32.1]} 18.
Rh1 {[%clk 0:02:09.9]} 18... Kf8 {[%clk 0:02:30.9]} 19. b3 {[%clk 0:02:03.2]}
19... Kg7 {[%clk 0:02:30.1]} 20. Ne2 {[%clk 0:02:03.1]} 20... a5 {[%clk
0:02:25.9]} 21. Nd4 {[%clk 0:02:01.1]} 21... a4 {[%clk 0:02:22.4]} 22. Nf3
{[%clk 0:02:00.8]} 22... Bf6 {[%clk 0:02:19.3]} 23. b4 {[%clk 0:01:48.5]} 23...
Rb8 {[%clk 0:02:10.6]} 24. c3 {[%clk 0:01:44.3]} 24... Rb7 {[%clk 0:01:59.7]}
25. a3 {[%clk 0:01:42.1]} 25... c5 {[%clk 0:01:57.7]} 26. Kc2 {[%clk 0:01:37.4]}
26... Bc6 {[%clk 0:01:56]} 27. e5 {[%clk 0:01:31.8]} 27... dxe5 {[%clk 0:01:46]}
28. bxc5 {[%clk 0:01:14.2]} 28... Rc7 {[%clk 0:01:44.7]} 29. Rd1 {[%clk
0:00:29.8]} 29... Bb7 {[%clk 0:01:40.8]} 30. Bb5 {[%clk 0:00:21]} 30... Rxc5
{[%clk 0:01:37.8]} 31. Bxa4 {[%clk 0:00:21.1]} 31... Bxf3 {[%clk 0:01:32.6]} 32.
gxf3 {[%clk 0:00:20.4]} 32... e4 {[%clk 0:01:33.2]} 33. fxe4 {[%clk 0:00:14.8]}
33... Rxc3+ {[%clk 0:01:32.8]} 34. Kd2 {[%clk 0:00:14.1]} 34... Rxa3 {[%clk
0:01:31.7]} 35. Bc6 {[%clk 0:00:10.2]} 35... Bg5 {[%clk 0:01:30.1]} 36. Re1
{[%clk 0:00:08.7]} 36... Kf6 {[%clk 0:01:29.9]} 37. Rf1+ {[%clk 0:00:07.6]}
37... Ke7 {[%clk 0:01:29.7]} 38. Re1 {[%clk 0:00:07.9]} 38... Kd6 {[%clk
0:01:29.3]} 39. Be8 {[%clk 0:00:08.5]} 39... Ke7 {[%clk 0:01:28.4]} 40. Bc6
{[%clk 0:00:08.1]} 40... Bh4 {[%clk 0:01:19.4]} 41. Rb1 {[%clk 0:00:06]} 41...
Bf2 {[%clk 0:01:15.6]} 42. Rb7+ {[%clk 0:00:04.8]} 42... Kf8 {[%clk 0:01:14.8]}
43. Ke2 {[%clk 0:00:02.7]} 43... Bxe3 {[%clk 0:01:13.7]} 0-1

[Event "*** Titled Tuesday Blitz"]
[Site "Chess.com"]
[Date "2021.02.02"]
[Round "1"]
[White "Larciano"]
[Black "Pliukha_Mikhail"]
[Result "0-1"]
[WhiteElo "1691"]
[BlackElo "2479"]
[TimeControl "180+1"]
[EndTime "10:06:29 PST"]
[Termination "Pliukha_Mikhail won on time"]

1. e4 {[%clk 0:03:00.9]} 1... e5 {[%clk 0:02:59.8]} 2. Nf3 {[%clk 0:02:59.2]}
2... Nc6 {[%clk 0:03:00.7]} 3. Bc4 {[%clk 0:02:59.1]} 3... Bc5 {[%clk
0:02:59.1]} 4. d3 {[%clk 0:02:59.1]} 4... Nf6 {[%clk 0:02:58.9]} 5. c3 {[%clk
0:02:59.4]} 5... d6 {[%clk 0:02:59.4]} 6. O-O {[%clk 0:02:59]} 6... O-O {[%clk
0:02:59.7]} 7. Nbd2 {[%clk 0:02:59.1]} 7... h6 {[%clk 0:02:59.2]} 8. Re1 {[%clk
0:02:59.2]} 8... a5 {[%clk 0:02:56.4]} 9. Bb3 {[%clk 0:02:58.4]} 9... Bb6 {[%clk
0:02:56.3]} 10. Nf1 {[%clk 0:02:55.9]} 10... Ne7 {[%clk 0:02:56.9]} 11. Ng3
{[%clk 0:02:54.4]} 11... Ng6 {[%clk 0:02:57.4]} 12. h3 {[%clk 0:02:54.3]} 12...
c6 {[%clk 0:02:57.9]} 13. d4 {[%clk 0:02:49.4]} 13... Re8 {[%clk 0:02:53.8]} 14.
Be3 {[%clk 0:02:31.4]} 14... exd4 {[%clk 0:02:51.1]} 15. Bxd4 {[%clk 0:02:31.5]}
15... Be6 {[%clk 0:02:49.2]} 16. Bc2 {[%clk 0:02:29.9]} 16... Bxd4 {[%clk
0:02:46.5]} 17. cxd4 {[%clk 0:02:27.9]} 17... Qb6 {[%clk 0:02:39.2]} 18. e5
{[%clk 0:02:22.1]} 18... dxe5 {[%clk 0:02:39.3]} 19. dxe5 {[%clk 0:02:22.3]}
19... Rad8 {[%clk 0:02:38.3]} 20. Qe2 {[%clk 0:02:08.3]} 20... Nf4 {[%clk
0:02:36.5]} 21. Qe3 {[%clk 0:02:06.8]} 21... N6d5 {[%clk 0:02:36.8]} 22. Qe4
{[%clk 0:02:05.4]} 22... Ng6 {[%clk 0:02:29.8]} 23. Nh4 {[%clk 0:01:58.2]} 23...
Nxh4 {[%clk 0:02:29.4]} 24. Qh7+ {[%clk 0:01:56.6]} 24... Kf8 {[%clk 0:02:30]}
25. Qh8+ {[%clk 0:01:54.4]} 25... Ke7 {[%clk 0:02:30.5]} 26. Qxg7 {[%clk
0:01:54.6]} 26... Rh8 {[%clk 0:02:19.1]} 27. Bh7 {[%clk 0:01:10.5]} 27... Ng6
{[%clk 0:01:53.5]} 28. Ne4 {[%clk 0:00:55.3]} 28... Kd7 {[%clk 0:01:44.8]} 29.
Bxg6 {[%clk 0:00:45.5]} 29... Rdg8 {[%clk 0:01:42.9]} 30. Nf6+ {[%clk
0:00:45.6]} 30... Nxf6 {[%clk 0:01:39.4]} 31. Qxf6 {[%clk 0:00:45.5]} 31... fxg6
{[%clk 0:01:33.3]} 32. Rad1+ {[%clk 0:00:43.8]} 32... Bd5 {[%clk 0:01:33.6]} 33.
e6+ {[%clk 0:00:39.4]} 33... Kc8 {[%clk 0:01:33.6]} 34. e7 {[%clk 0:00:38.2]}
34... Re8 {[%clk 0:01:33.7]} 35. Qxg6 {[%clk 0:00:36.1]} 35... Rhg8 {[%clk
0:01:31.6]} 36. Qf5+ {[%clk 0:00:36.1]} 36... Kb8 {[%clk 0:01:32.2]} 37. Rxd5
{[%clk 0:00:27]} 37... cxd5 {[%clk 0:01:31.9]} 38. Qxd5 {[%clk 0:00:25.4]} 38...
Qc6 {[%clk 0:01:31.9]} 39. Qe5+ {[%clk 0:00:21.7]} 39... Qc7 {[%clk 0:01:32]}
40. Qe6 {[%clk 0:00:16.5]} 40... Rg7 {[%clk 0:01:31.1]} 41. Qxh6 {[%clk
0:00:09.4]} 41... Rgxe7 {[%clk 0:01:31.4]} 42. Rxe7 {[%clk 0:00:09.4]} 42...
Rxe7 {[%clk 0:01:32.3]} 0-1

[Event "*** Titled Tuesday Blitz"]
[Site "Chess.com"]
[Date "2021.02.02"]
[Round "1"]
[White "kenta1234"]
[Black "c_r_e_e_p_e_r"]
[Result "1-0"]
[WhiteElo "2671"]
[BlackElo "2359"]
[TimeControl "180+1"]
[EndTime "10:06:33 PST"]
[Termination "kenta1234 won on time"]

1. Nf3 {[%clk 0:03:00.9]} 1... d5 {[%clk 0:02:59.9]} 2. d4 {[%clk 0:03:00.6]}
2... Nf6 {[%clk 0:02:59.8]} 3. c4 {[%clk 0:03:01.1]} 3... dxc4 {[%clk
0:02:59.9]} 4. e3 {[%clk 0:03:00.2]} 4... Bg4 {[%clk 0:02:59.1]} 5. Bxc4 {[%clk
0:02:59.6]} 5... e6 {[%clk 0:02:59.8]} 6. Nc3 {[%clk 0:02:59.4]} 6... a6 {[%clk
0:02:59.9]} 7. h3 {[%clk 0:02:59.8]} 7... Bh5 {[%clk 0:02:59.6]} 8. a4 {[%clk
0:02:59.7]} 8... Nc6 {[%clk 0:02:58.9]} 9. O-O {[%clk 0:03:00]} 9... Bd6 {[%clk
0:02:59]} 10. e4 {[%clk 0:02:56.5]} 10... Bxf3 {[%clk 0:02:53]} 11. gxf3 {[%clk
0:02:54.9]} 11... Nxd4 {[%clk 0:02:52.7]} 12. Be3 {[%clk 0:02:52.1]} 12... Nc6
{[%clk 0:02:47.3]} 13. f4 {[%clk 0:02:51.6]} 13... e5 {[%clk 0:02:41.7]} 14.
fxe5 {[%clk 0:02:48.8]} 14... Nxe5 {[%clk 0:02:28]} 15. Be2 {[%clk 0:02:45]}
15... Qe7 {[%clk 0:02:25.4]} 16. f4 {[%clk 0:02:42.4]} 16... Bc5 {[%clk
0:02:25.6]} 17. Qc1 {[%clk 0:02:31]} 17... Ng6 {[%clk 0:02:22.4]} 18. e5 {[%clk
0:02:09.5]} 18... Nxe5 {[%clk 0:02:18.6]} 19. fxe5 {[%clk 0:02:08]} 19... Qxe5
{[%clk 0:02:19.5]} 20. Rf3 {[%clk 0:02:03.7]} 20... O-O {[%clk 0:02:15.8]} 21.
Bxc5 {[%clk 0:02:03.2]} 21... Qxc5+ {[%clk 0:02:16]} 22. Qe3 {[%clk 0:02:03.4]}
22... Qb4 {[%clk 0:02:13.8]} 23. Raf1 {[%clk 0:01:54.9]} 23... Rae8 {[%clk
0:02:13.1]} 24. Qg5 {[%clk 0:01:53]} 24... Qxb2 {[%clk 0:01:52.4]} 25. Rg3
{[%clk 0:01:43.7]} 25... g6 {[%clk 0:01:13.6]} 26. Qxf6 {[%clk 0:01:36.5]} 26...
Rxe2 {[%clk 0:01:03.9]} 27. Nxe2 {[%clk 0:01:34.1]} 27... Qxe2 {[%clk
0:01:04.6]} 28. Rgf3 {[%clk 0:01:28.4]} 28... Qc4 {[%clk 0:01:00.5]} 29. Rf4
{[%clk 0:01:26.7]} 29... Qc5+ {[%clk 0:00:59.9]} 30. Kh2 {[%clk 0:01:25.6]}
30... Qc2+ {[%clk 0:00:58.2]} 31. R1f2 {[%clk 0:01:25.8]} 31... Qc1 {[%clk
0:00:54.4]} 32. h4 {[%clk 0:01:25.8]} 32... h5 {[%clk 0:00:46.4]} 33. Rg2 {[%clk
0:01:23.5]} 33... Qc5 {[%clk 0:00:28.8]} 34. Rf5 {[%clk 0:01:17.1]} 34... Qd6+
{[%clk 0:00:12.8]} 35. Qxd6 {[%clk 0:01:16.6]} 35... cxd6 {[%clk 0:00:13.7]} 36.
Rd5 {[%clk 0:01:16.7]} 36... Rc8 {[%clk 0:00:12.8]} 37. Rxd6 {[%clk 0:01:14.1]}
37... Rc4 {[%clk 0:00:12.9]} 38. Rf2 {[%clk 0:01:13.2]} 38... Rxh4+ {[%clk
0:00:12.5]} 39. Kg3 {[%clk 0:01:13.1]} 39... Rxa4 {[%clk 0:00:12.8]} 40. Rd7
{[%clk 0:01:12.8]} 40... Rg4+ {[%clk 0:00:08.3]} 41. Kh3 {[%clk 0:01:12.9]}
41... f5 {[%clk 0:00:02.9]} 42. Rc2 {[%clk 0:01:12]} 1-0

[Event "*** Titled Tuesday Blitz"]
[Site "Chess.com"]
[Date "2021.02.02"]
[Round "1"]
[White "Michaelson_11"]
[Black "mikolka1985"]
[Result "0-1"]
[WhiteElo "2253"]
[BlackElo "2565"]
[TimeControl "180+1"]
[EndTime "10:06:33 PST"]
[Termination "mikolka1985 won by resignation"]

1. e4 {[%clk 0:03:00.9]} 1... e5 {[%clk 0:02:59]} 2. Nf3 {[%clk 0:02:58.3]} 2...
Nc6 {[%clk 0:02:58.3]} 3. Nc3 {[%clk 0:02:58.4]} 3... Nf6 {[%clk 0:02:57.4]} 4.
Bb5 {[%clk 0:02:58.5]} 4... Bd6 {[%clk 0:02:56.3]} 5. d3 {[%clk 0:02:57.5]} 5...
O-O {[%clk 0:02:53.7]} 6. h3 {[%clk 0:02:51.6]} 6... Re8 {[%clk 0:02:52.1]} 7.
g4 {[%clk 0:02:40.2]} 7... a6 {[%clk 0:02:45.2]} 8. Ba4 {[%clk 0:02:37.9]} 8...
b5 {[%clk 0:01:55.3]} 9. Bb3 {[%clk 0:02:33.8]} 9... g6 {[%clk 0:01:41]} 10. Bg5
{[%clk 0:02:28.3]} 10... Be7 {[%clk 0:01:40.6]} 11. Qd2 {[%clk 0:02:23.5]} 11...
d6 {[%clk 0:01:39.9]} 12. Ne2 {[%clk 0:02:01.1]} 12... Bf8 {[%clk 0:01:24]} 13.
Bd5 {[%clk 0:01:47.7]} 13... Bd7 {[%clk 0:01:22.7]} 14. h4 {[%clk 0:01:35.7]}
14... Be7 {[%clk 0:01:20.5]} 15. h5 {[%clk 0:01:26.4]} 15... Nxd5 {[%clk
0:01:18.3]} 16. exd5 {[%clk 0:01:18.7]} 16... Nd4 {[%clk 0:01:17.8]} 17. Nfxd4
{[%clk 0:01:13.1]} 17... Bxg5 {[%clk 0:01:17]} 18. f4 {[%clk 0:01:04]} 18...
exf4 {[%clk 0:01:16.7]} 19. hxg6 {[%clk 0:00:42.8]} 19... hxg6 {[%clk
0:01:11.2]} 20. Kf2 {[%clk 0:00:36]} 20... f3 {[%clk 0:00:54.5]} 21. Qc3 {[%clk
0:00:29.1]} 21... fxe2 {[%clk 0:00:36.1]} 22. Nf5 {[%clk 0:00:24.5]} 22... Qf6
{[%clk 0:00:34.6]} 23. Qxf6 {[%clk 0:00:13.2]} 23... Bxf6 {[%clk 0:00:30.2]} 24.
Nh6+ {[%clk 0:00:14.1]} 24... Kg7 {[%clk 0:00:29.9]} 0-1

[Event "*** Titled Tuesday Blitz"]
[Site "Chess.com"]
[Date "2021.02.02"]
[Round "1"]
[White "Virgo15"]
[Black "MarceloPlaya"]
[Result "1-0"]
[WhiteElo "2602"]
[BlackElo "2295"]
[TimeControl "180+1"]
[EndTime "10:06:34 PST"]
[Termination "Virgo15 won on time"]

1. d4 {[%clk 0:02:59.8]} 1... e6 {[%clk 0:03:00.2]} 2. Bf4 {[%clk 0:02:59]} 2...
Nf6 {[%clk 0:02:58.9]} 3. Nf3 {[%clk 0:02:59.2]} 3... d5 {[%clk 0:02:58.4]} 4.
e3 {[%clk 0:02:59.4]} 4... c5 {[%clk 0:02:58.1]} 5. c3 {[%clk 0:02:58.3]} 5...
Nc6 {[%clk 0:02:57.8]} 6. Nbd2 {[%clk 0:02:57.8]} 6... Be7 {[%clk 0:02:57.1]} 7.
Bd3 {[%clk 0:02:55.2]} 7... O-O {[%clk 0:02:52.7]} 8. h4 {[%clk 0:02:55.5]} 8...
cxd4 {[%clk 0:02:31.3]} 9. exd4 {[%clk 0:02:54.9]} 9... Nh5 {[%clk 0:02:24.5]}
10. Bxh7+ {[%clk 0:02:44.7]} 10... Kxh7 {[%clk 0:02:22.6]} 11. Ng5+ {[%clk
0:02:44.8]} 11... Kg6 {[%clk 0:02:12.5]} 12. Qg4 {[%clk 0:02:36.9]} 12... f5
{[%clk 0:02:09]} 13. Qf3 {[%clk 0:02:18.9]} 13... Bd6 {[%clk 0:01:58.9]} 14. g3
{[%clk 0:02:02.4]} 14... Bxf4 {[%clk 0:01:43.8]} 15. gxf4 {[%clk 0:02:01.6]}
15... Kh6 {[%clk 0:01:26.9]} 16. Rg1 {[%clk 0:01:53.5]} 16... Qf6 {[%clk
0:01:08.6]} 17. O-O-O {[%clk 0:01:48.4]} 17... Bd7 {[%clk 0:01:07.3]} 18. Rg2
{[%clk 0:01:43.9]} 18... g6 {[%clk 0:01:00.3]} 19. Rdg1 {[%clk 0:01:43.1]} 19...
Be8 {[%clk 0:00:57.7]} 20. Qe3 {[%clk 0:01:35.6]} 20... Bf7 {[%clk 0:00:53.8]}
21. Ndf3 {[%clk 0:01:23.8]} 21... Rae8 {[%clk 0:00:49.9]} 22. Ne5 {[%clk
0:01:23.5]} 22... Nxe5 {[%clk 0:00:47.6]} 23. fxe5 {[%clk 0:01:24.4]} 23... f4
{[%clk 0:00:43.8]} 24. Qd3 {[%clk 0:01:18.4]} 24... Qf5 {[%clk 0:00:41.7]} 25.
Nxf7+ {[%clk 0:01:18.6]} 25... Rxf7 {[%clk 0:00:34.7]} 26. Rxg6+ {[%clk
0:01:18.6]} 26... Kh7 {[%clk 0:00:34.6]} 27. R6g5 {[%clk 0:01:16.4]} 27... Ng7
{[%clk 0:00:20.2]} 28. Rxf5 {[%clk 0:01:13.1]} 28... Nxf5 {[%clk 0:00:20]} 29.
Qf3 {[%clk 0:01:10.6]} 29... Kh6 {[%clk 0:00:17.1]} 30. Qxf4+ {[%clk 0:01:02.3]}
30... Kh7 {[%clk 0:00:14.3]} 31. Qg5 {[%clk 0:00:59.8]} 31... Ng7 {[%clk
0:00:11]} 32. h5 {[%clk 0:00:55.4]} 32... Rg8 {[%clk 0:00:06]} 33. Qg6+ {[%clk
0:00:54.9]} 1-0

[Event "*** Titled Tuesday Blitz"]
[Site "Chess.com"]
[Date "2021.02.02"]
[Round "1"]
[White "GM_LOADING"]
[Black "eljanov"]
[Result "0-1"]
[WhiteElo "2458"]
[BlackElo "2897"]
[TimeControl "180+1"]
[EndTime "10:06:37 PST"]
[Termination "eljanov won by resignation"]

1. d4 {[%clk 0:02:59.7]} 1... Nf6 {[%clk 0:02:58.7]} 2. Nf3 {[%clk 0:02:59.5]}
2... e6 {[%clk 0:02:58.6]} 3. Bg5 {[%clk 0:02:59.6]} 3... c5 {[%clk 0:02:57.9]}
4. e3 {[%clk 0:02:58.8]} 4... d5 {[%clk 0:02:57.5]} 5. Nbd2 {[%clk 0:02:57.1]}
5... Nc6 {[%clk 0:02:56.8]} 6. c3 {[%clk 0:02:57.3]} 6... h6 {[%clk 0:02:55.7]}
7. Bh4 {[%clk 0:02:55.9]} 7... g5 {[%clk 0:02:55.3]} 8. Bg3 {[%clk 0:02:55.3]}
8... Nh5 {[%clk 0:02:54.7]} 9. Bd3 {[%clk 0:02:50.5]} 9... Qb6 {[%clk
0:02:47.7]} 10. Rb1 {[%clk 0:02:33.6]} 10... Nxg3 {[%clk 0:02:46.6]} 11. hxg3
{[%clk 0:02:33.5]} 11... Bg7 {[%clk 0:02:46.6]} 12. Qe2 {[%clk 0:02:31]} 12...
Bd7 {[%clk 0:02:43.6]} 13. O-O {[%clk 0:02:22]} 13... g4 {[%clk 0:02:28.4]} 14.
Nh4 {[%clk 0:02:17]} 14... h5 {[%clk 0:02:24.2]} 15. e4 {[%clk 0:02:08.1]} 15...
O-O-O {[%clk 0:02:08.3]} 16. exd5 {[%clk 0:02:03.3]} 16... exd5 {[%clk 0:02:08]}
17. dxc5 {[%clk 0:01:42]} 17... Qxc5 {[%clk 0:02:06.4]} 18. Bf5 {[%clk 0:01:42]}
18... Bf6 {[%clk 0:01:52.9]} 19. Bxd7+ {[%clk 0:01:33.4]} 19... Rxd7 {[%clk
0:01:52.7]} 20. Nf5 {[%clk 0:00:55.1]} 20... d4 {[%clk 0:01:45.7]} 21. Nxd4
{[%clk 0:00:50]} 21... Bxd4 {[%clk 0:01:45.3]} 22. cxd4 {[%clk 0:00:32.1]} 22...
Nxd4 {[%clk 0:01:45.2]} 23. Qe3 {[%clk 0:00:26.2]} 23... Kb8 {[%clk 0:01:21.3]}
24. Rbc1 {[%clk 0:00:19.4]} 24... Qd5 {[%clk 0:01:08.4]} 25. Rfe1 {[%clk
0:00:04.3]} 25... a6 {[%clk 0:01:07.8]} 26. Qf4+ {[%clk 0:00:03.6]} 26... Ka8
{[%clk 0:01:04.4]} 27. Nc4 {[%clk 0:00:02.7]} 27... Ka7 {[%clk 0:00:53]} 28. Ne5
{[%clk 0:00:02.5]} 28... Re7 {[%clk 0:00:41.1]} 29. Qf3 {[%clk 0:00:01.4]} 29...
gxf3 {[%clk 0:00:38.2]} 0-1

[Event "*** Titled Tuesday Blitz"]
[Site "Chess.com"]
[Date "2021.02.02"]
[Round "1"]
[White "MariaFominykh"]
[Black "Mr_Penings"]
[Result "0-1"]
[WhiteElo "2289"]
[BlackElo "2589"]
[TimeControl "180+1"]
[EndTime "10:06:38 PST"]
[Termination "Mr_Penings won on time"]

1. d4 {[%clk 0:03:00.3]} 1... Nf6 {[%clk 0:02:57.1]} 2. c4 {[%clk 0:02:59.6]}
2... d6 {[%clk 0:02:57.2]} 3. Nf3 {[%clk 0:02:57]} 3... Nbd7 {[%clk 0:02:57.3]}
4. Nc3 {[%clk 0:02:55.5]} 4... e5 {[%clk 0:02:57.5]} 5. d5 {[%clk 0:02:50]} 5...
e4 {[%clk 0:02:55]} 6. Nd4 {[%clk 0:02:47.8]} 6... a5 {[%clk 0:02:47.7]} 7. g3
{[%clk 0:02:37.9]} 7... Nc5 {[%clk 0:02:46.2]} 8. Bg2 {[%clk 0:02:37.2]} 8... h5
{[%clk 0:02:46.8]} 9. Bg5 {[%clk 0:02:34.6]} 9... Be7 {[%clk 0:02:33.9]} 10.
Bxf6 {[%clk 0:02:20.3]} 10... Bxf6 {[%clk 0:02:33.3]} 11. Nxe4 {[%clk
0:02:20.3]} 11... Nxe4 {[%clk 0:02:33.5]} 12. Bxe4 {[%clk 0:02:19.7]} 12... h4
{[%clk 0:02:19.4]} 13. Qd3 {[%clk 0:01:56.2]} 13... Qe7 {[%clk 0:02:02]} 14.
O-O-O {[%clk 0:01:45.8]} 14... a4 {[%clk 0:01:50.3]} 15. Nb5 {[%clk 0:01:28.6]}
15... Kd8 {[%clk 0:01:31.6]} 16. f4 {[%clk 0:01:19.7]} 16... Re8 {[%clk
0:01:23.3]} 17. Bf3 {[%clk 0:01:13.7]} 17... Bd7 {[%clk 0:01:00.6]} 18. e4
{[%clk 0:00:58.4]} 18... g5 {[%clk 0:00:58.7]} 19. e5 {[%clk 0:00:38.9]} 19...
Bg7 {[%clk 0:00:46.4]} 20. exd6 {[%clk 0:00:20.5]} 20... cxd6 {[%clk 0:00:47.3]}
21. Kb1 {[%clk 0:00:06.1]} 21... Qf6 {[%clk 0:00:44.8]} 22. Qd2 {[%clk
0:00:04.8]} 22... Bf5+ {[%clk 0:00:37.4]} 23. Ka1 {[%clk 0:00:03.5]} 23... a3
{[%clk 0:00:36.9]} 24. Nd4 {[%clk 0:00:02]} 24... g4 {[%clk 0:00:31.6]} 25. Bg2
{[%clk 0:00:01.1]} 25... h3 {[%clk 0:00:31.8]} 26. Bf1 {[%clk 0:00:01.2]} 26...
Re4 {[%clk 0:00:27.3]} 0-1

[Event "*** Titled Tuesday Blitz"]
[Site "Chess.com"]
[Date "2021.02.02"]
[Round "1"]
[White "Stronger1799"]
[Black "kasparicy"]
[Result "1-0"]
[WhiteElo "2611"]
[BlackElo "2311"]
[TimeControl "180+1"]
[EndTime "10:06:40 PST"]
[Termination "Stronger1799 won by resignation"]

1. e4 {[%clk 0:03:00.9]} 1... c5 {[%clk 0:02:53.4]} 2. Nf3 {[%clk 0:03:00.7]}
2... d6 {[%clk 0:02:53.4]} 3. d4 {[%clk 0:03:01.3]} 3... cxd4 {[%clk 0:02:54.3]}
4. Nxd4 {[%clk 0:03:02.2]} 4... Nf6 {[%clk 0:02:54.2]} 5. Nc3 {[%clk 0:03:02.7]}
5... a6 {[%clk 0:02:54]} 6. f3 {[%clk 0:03:03.2]} 6... e6 {[%clk 0:02:53.8]} 7.
Be3 {[%clk 0:03:02.5]} 7... b5 {[%clk 0:02:53.9]} 8. g4 {[%clk 0:03:02.9]} 8...
h6 {[%clk 0:02:54.4]} 9. Qd2 {[%clk 0:03:02.9]} 9... b4 {[%clk 0:02:54.7]} 10.
Nce2 {[%clk 0:03:02]} 10... e5 {[%clk 0:02:54.8]} 11. Nb3 {[%clk 0:03:01.5]}
11... Be6 {[%clk 0:02:48.8]} 12. Ng3 {[%clk 0:02:58.4]} 12... Nc6 {[%clk
0:02:48.4]} 13. O-O-O {[%clk 0:02:42.2]} 13... d5 {[%clk 0:02:46.1]} 14. exd5
{[%clk 0:02:39.5]} 14... Nxd5 {[%clk 0:02:47]} 15. Bc4 {[%clk 0:02:10.9]} 15...
Nxe3 {[%clk 0:01:59.2]} 16. Qxe3 {[%clk 0:02:11.8]} 16... Qc8 {[%clk 0:01:49.2]}
17. Bxe6 {[%clk 0:01:42.9]} 17... Qxe6 {[%clk 0:01:50.1]} 18. Nf5 {[%clk
0:01:43.4]} 18... g6 {[%clk 0:01:32.8]} 19. Rd6 {[%clk 0:00:48]} 19... Bxd6
{[%clk 0:00:13.8]} 20. Ng7+ {[%clk 0:00:47.5]} 20... Ke7 {[%clk 0:00:14.2]} 21.
Nxe6 {[%clk 0:00:48.4]} 21... Kxe6 {[%clk 0:00:14.6]} 22. f4 {[%clk 0:00:41.9]}
22... Rac8 {[%clk 0:00:15]} 23. Rf1 {[%clk 0:00:33.1]} 23... Rhe8 {[%clk
0:00:13.9]} 24. f5+ {[%clk 0:00:32.6]} 24... gxf5 {[%clk 0:00:14]} 25. gxf5+
{[%clk 0:00:33]} 25... Ke7 {[%clk 0:00:13.8]} 26. Qxh6 {[%clk 0:00:32.7]} 26...
Rg8 {[%clk 0:00:12.3]} 27. Qh4+ {[%clk 0:00:31.5]} 27... f6 {[%clk 0:00:12.4]}
28. Qh7+ {[%clk 0:00:31.4]} 28... Kf8 {[%clk 0:00:12.4]} 29. Qd7 {[%clk
0:00:30.2]} 1-0